bitfinex-derivatives/quotes_BTCF0:USTF0_20241227
["timestamp","ask_amount","ask_price","bid_price","bid_amount"]
[1735259067718,0.004,95658.0,95655.0,0.052335]
[1735259068118,0.004,95658.0,95655.0,0.053335]
[1735259068621,0.02313248,95664.0,95655.0,0.053335]
[1735259068821,0.001,95657.0,95655.0,0.052335]
[1735259069415,0.052325,95675.0,95657.0,0.052334]
[1735259069623,0.052325,95675.0,95655.0,0.001]
[1735259070908,0.052325,95675.0,95661.0,0.052332]
[1735259071213,0.02508977,95676.0,95655.0,0.001]
[1735259071413,0.02508977,95676.0,95659.0,0.052333]
[1735259072026,0.02508977,95676.0,95661.0,0.002]
[1735259072215,0.07741377,95676.0,95661.0,0.002]
[1735259072524,0.07741377,95676.0,95662.0,0.287732]
[1735259073927,0.07667786,95672.0,95661.0,0.18704906]
[1735259074226,0.07741377,95676.0,95661.0,0.19004906]
[1735259074427,0.052325,95675.0,95661.0,0.19004906]
[1735259074822,0.02508977,95676.0,95662.0,0.005]
[1735259075025,0.02508977,95676.0,95665.0,0.05233]
[1735259075227,0.05389249,95676.0,95663.0,0.2292]
[1735259076227,0.05389249,95676.0,95664.0,0.2322]
[1735259078520,0.05389249,95676.0,95665.0,0.18604906]
[1735259080334,0.00156849,95676.0,95666.0,0.07667786]
[1735259080538,0.00156849,95676.0,95672.0,0.052326]
[1735259080830,0.00156849,95676.0,95673.0,0.052325]
[1735259081823,0.02320994,95678.0,95673.0,0.052325]
[1735259082028,0.052319,95686.0,95673.0,0.053325]
[1735259082223,0.052319,95686.0,95674.0,0.24806541]
[1735259083029,0.052319,95686.0,95674.0,0.30039041]
[1735259083331,0.052317,95691.0,95676.0,0.052324]
[1735259083533,0.02494064,95696.0,95676.0,0.052324]
[1735259083728,0.052317,95690.0,95681.0,0.24806541]
[1735259084922,9.865e-05,95686.0,95684.0,0.37209812]
[1735259086030,0.052319,95687.0,95685.0,0.81736467]
[1735259087037,0.052319,95687.0,95685.0,0.81836467]
[1735259087237,0.02494064,95696.0,95685.0,0.81836467]
[1735259087427,0.02494064,95696.0,95685.0,0.37370683]
[1735259087749,0.02494064,95696.0,95686.0,0.74845105]
[1735259088738,0.052314,95695.0,95694.0,0.31314684]
[1735259089835,0.02494064,95696.0,95691.0,0.31314684]
[1735259090037,0.052315,95692.0,95691.0,0.31314684]
[1735259090930,0.052315,95692.0,95691.0,0.68489291]
[1735259091729,0.052315,95692.0,95691.0,0.68589291]
[1735259092033,0.052315,95692.0,95691.0,0.31414684]
[1735259093639,0.052315,95692.0,95691.0,0.001]
[1735259094638,0.02494064,95696.0,95687.0,0.37574422]
[1735259094836,0.052315,95692.0,95691.0,0.001]
[1735259095839,0.052315,95692.0,95687.0,0.32228594]
[1735259095840,0.052318,95688.0,95687.0,0.32228594]
[1735259096041,0.05232,95683.0,95675.0,0.37574422]
[1735259096337,0.7109,95682.0,95675.0,0.37574422]
[1735259096728,0.052324,95676.0,95675.0,0.37574422]
[1735259097331,0.71182,95682.0,95674.0,0.18808985]
[1735259097332,0.052325,95675.0,95674.0,0.18808985]
[1735259098245,0.71182,95682.0,95662.0,0.18808985]
[1735259098440,0.052331,95663.0,95662.0,0.18808985]
[1735259099240,0.002,95675.0,95662.0,0.18808985]
[1735259099444,0.003,95663.0,95662.0,0.18808985]
[1735259099650,0.052322,95681.0,95662.0,0.43078985]
[1735259099941,0.22587808,95682.0,95662.0,1.7427]
[1735259100129,0.22487808,95682.0,95662.0,1.7427]
[1735259100443,0.22487808,95682.0,95672.0,0.052326]
[1735259100628,0.22487808,95682.0,95673.0,0.242]
[1735259101034,0.03754713,95682.0,95681.0,0.18808985]
[1735259101236,0.052318,95687.0,95681.0,0.18808985]
[1735259102536,0.052318,95687.0,95684.0,0.18808985]
[1735259103043,0.057318,95687.0,95684.0,0.18808985]
[1735259103241,0.042031,95687.0,95684.0,0.18808985]
[1735259103943,0.042031,95687.0,95683.0,0.18808985]
[1735259104342,0.1,95700.0,95693.0,0.052315]
[1735259104539,0.1,95700.0,95694.0,0.2345]
[1735259104734,0.1,95700.0,95696.0,0.052313]
[1735259104939,0.1,95700.0,95697.0,0.2416]
[1735259105642,0.00156821,95707.0,95706.0,0.052308]
[1735259105847,0.18733095,95716.0,95697.0,0.31827786]
[1735259106046,0.18733095,95716.0,95710.0,0.052306]
[1735259106248,0.18733095,95716.0,95711.0,0.052305]
[1735259106549,0.18733095,95716.0,95712.0,0.052304]
[1735259106849,0.0894063,95725.0,95713.0,0.228]
[1735259108048,0.0894063,95725.0,95714.0,0.052304]
[1735259108251,0.0894063,95725.0,95714.0,0.23979179]
[1735259108448,0.00156753,95737.0,95724.0,0.052298]
[1735259108645,0.052292,95736.0,95727.0,0.07667786]
[1735259108839,0.052292,95736.0,95721.0,0.0523]
[1735259109145,0.052292,95736.0,95723.0,0.052299]
[1735259110278,0.00156753,95737.0,95720.0,0.56493786]
[1735259110550,0.00156753,95737.0,95725.0,0.052298]
[1735259110743,0.001,95736.0,95725.0,0.052298]
[1735259110941,0.001,95736.0,95720.0,0.56493786]
[1735259111147,0.001,95736.0,95720.0,0.56437786]
[1735259111447,0.052295,95731.0,95720.0,0.4877]
[1735259112348,0.2433,95735.0,95720.0,0.4877]
[1735259112557,0.2433,95735.0,95720.0,0.56437786]
[1735259112746,0.09064501,95737.0,95720.0,0.56437786]
[1735259113048,0.09064501,95737.0,95727.0,0.07667786]
[1735259113049,0.00156753,95737.0,95727.0,0.07667786]
[1735259113238,0.00156753,95737.0,95730.0,0.052295]
[1735259113957,0.00156753,95737.0,95724.0,0.052298]
[1735259114144,0.00156753,95737.0,95721.0,0.052299]
[1735259114345,0.00156753,95737.0,95730.0,0.009]
[1735259116044,0.00156753,95737.0,95734.0,0.052292]
[1735259116449,0.00156753,95737.0,95730.0,0.015]
[1735259117148,0.00156753,95737.0,95730.0,0.067295]
[1735259117348,0.00156753,95737.0,95730.0,0.058295]
[1735259117546,0.00156753,95737.0,95734.0,0.009]
[1735259117749,0.00156753,95737.0,95734.0,0.015]
[1735259117948,0.00156753,95737.0,95734.0,0.006]
[1735259118348,0.00156753,95737.0,95730.0,0.067295]
[1735259118550,0.00156753,95737.0,95734.0,0.009]
[1735259119444,0.00156753,95737.0,95734.0,0.061293]
[1735259119640,0.00156753,95737.0,95734.0,0.009]
[1735259119854,0.00156753,95737.0,95736.0,0.052292]
[1735259121148,0.00156753,95737.0,95736.0,0.061292]
[1735259121650,0.00156753,95737.0,95736.0,0.067292]
[1735259122443,0.00156753,95737.0,95736.0,0.015]
[1735259124260,0.00256753,95737.0,95736.0,0.007]
[1735259124446,0.05485853,95737.0,95736.0,0.007]
[1735259125153,0.052292,95735.0,95712.0,0.052304]
[1735259125352,0.052303,95716.0,95710.0,0.2513]
[1735259125657,0.07667786,95720.0,95704.0,0.18748779]
[1735259126250,0.052305,95711.0,95697.0,0.052312]
[1735259126449,0.07667786,95710.0,95692.0,0.052315]
[1735259126654,0.23442,95736.0,95718.0,0.052301]
[1735259126951,0.35252,95775.0,95700.0,0.15335572]
[1735259126952,0.232,95753.0,95736.0,0.052291]
[1735259127156,0.052283,95752.0,95736.0,0.052291]
[1735259127458,0.2335,95773.0,95727.0,0.15335572]
[1735259127761,0.07667786,95770.0,95757.0,0.05228]
[1735259128055,0.27108522,95773.0,95743.0,0.052287]
[1735259128258,0.27108522,95773.0,95750.0,0.07667786]
[1735259128458,0.03758522,95773.0,95750.0,0.07667786]
[1735259128759,0.05227,95777.0,95760.0,0.052278]
[1735259128957,0.05227,95775.0,95760.0,0.052278]
[1735259130555,0.001,95773.0,95760.0,0.052278]
[1735259130952,0.05227,95775.0,95760.0,0.052278]
[1735259131262,0.03588232,95778.0,95760.0,0.057278]
[1735259131462,0.052272,95772.0,95760.0,0.005]
[1735259131658,0.052272,95772.0,95760.0,0.006]
[1735259132058,0.052274,95769.0,95754.0,0.052281]
[1735259132250,0.052274,95769.0,95746.0,0.251]
[1735259132251,0.052276,95764.0,95760.0,0.006]
[1735259132450,0.07667786,95770.0,95760.0,0.006]
[1735259132656,0.052278,95761.0,95760.0,0.006]
[1735259132856,0.052278,95761.0,95760.0,0.008]
[1735259133761,0.052278,95761.0,95760.0,0.011]
[1735259133963,0.052278,95761.0,95732.0,0.18676661]
[1735259134165,0.052288,95744.0,95732.0,0.18676661]
[1735259134660,0.07667786,95750.0,95732.0,0.18676661]
[1735259134960,0.07667786,95750.0,95730.0,0.18676661]
[1735259135158,0.052292,95735.0,95732.0,0.005]
[1735259135359,0.05229,95739.0,95732.0,0.005]
[1735259135755,0.05229,95738.0,95732.0,0.005]
[1735259135956,0.07667786,95750.0,95732.0,0.005]
[1735259136162,0.052291,95737.0,95732.0,0.005]
[1735259136551,0.052291,95737.0,95732.0,0.001]
[1735259136757,0.052291,95737.0,95732.0,0.002]
[1735259136958,0.006,95739.0,95732.0,0.002]
[1735259136959,0.052292,95736.0,95732.0,0.002]
[1735259137165,0.052292,95736.0,95732.0,0.001]
[1735259137658,0.006,95737.0,95732.0,0.001]
[1735259137856,0.052292,95735.0,95732.0,0.001]
[1735259138362,0.009,95736.0,95732.0,0.001]
[1735259138560,0.052293,95733.0,95732.0,0.001]
[1735259139053,0.009,95736.0,95732.0,0.001]
[1735259139054,0.015,95736.0,95732.0,0.001]
[1735259139256,0.052293,95733.0,95732.0,0.001]
[1735259139965,0.058293,95733.0,95732.0,0.001]
[1735259140165,0.006,95733.0,95732.0,0.001]
[1735259140856,0.006,95733.0,95732.0,0.002]
[1735259141055,0.058293,95733.0,95732.0,0.002]
[1735259141267,0.067293,95733.0,95732.0,0.002]
[1735259142770,0.061293,95733.0,95732.0,0.001]
[1735259142968,0.067293,95733.0,95732.0,0.002]
[1735259143855,0.068293,95733.0,95732.0,0.002]
[1735259145067,0.068293,95733.0,95710.0,0.18833369]
[1735259145068,0.052304,95714.0,95710.0,0.18833369]
[1735259145370,0.052304,95714.0,95710.0,0.00156708]
[1735259145665,0.07667786,95730.0,95710.0,0.00156708]
[1735259145863,0.052298,95724.0,95710.0,0.00156708]
[1735259146066,0.052295,95729.0,95714.0,0.052303]
[1735259146268,0.052295,95729.0,95715.0,0.052303]
[1735259147782,0.052295,95729.0,95710.0,0.07824494]
[1735259147971,0.052295,95729.0,95716.0,0.052302]
[1735259147972,0.059295,95729.0,95716.0,0.052302]
[1735259148160,0.059295,95729.0,95717.0,0.255]
[1735259148464,0.063295,95729.0,95717.0,0.255]
[1735259148764,0.052297,95727.0,95717.0,0.255]
[1735259149369,0.009,95729.0,95717.0,0.255]
[1735259149559,0.052297,95726.0,95717.0,0.255]
[1735259150666,0.052297,95726.0,95717.0,0.256]
[1735259151072,0.052297,95726.0,95717.0,0.255]
[1735259151269,0.060297,95726.0,95717.0,0.256]
[1735259152270,0.064297,95726.0,95717.0,0.256]
[1735259154468,0.0957555,95726.0,95717.0,0.256]
[1735259155375,0.0434585,95726.0,95717.0,0.256]
[1735259155564,0.052298,95724.0,95717.0,0.256]
[1735259156477,0.0434585,95726.0,95717.0,0.256]
[1735259156668,0.004,95724.0,95717.0,0.256]
[1735259156873,0.012,95724.0,95717.0,0.256]
[1735259159375,0.052299,95722.0,95717.0,0.256]
[1735259160166,0.012,95724.0,95717.0,0.256]
[1735259160670,0.012,95724.0,95717.0,0.255]
[1735259160873,0.012,95724.0,95717.0,0.256]
[1735259160874,0.008,95722.0,95717.0,0.256]
[1735259161070,0.008,95722.0,95721.0,0.0523]
[1735259161266,0.004,95724.0,95721.0,0.0523]
[1735259161471,0.012,95724.0,95721.0,0.0523]
[1735259161878,0.004,95722.0,95721.0,0.0523]
[1735259162564,0.008,95724.0,95723.0,0.052299]
[1735259162780,0.013,95724.0,95723.0,0.052299]
[1735259163479,0.008,95724.0,95723.0,0.052299]
[1735259163672,0.008,95722.0,95721.0,0.0533]
[1735259164681,0.18669319,95736.0,95732.0,0.052293]
[1735259164880,0.18669319,95736.0,95733.0,0.2586]
[1735259165181,0.18669319,95736.0,95733.0,0.310893]
[1735259165575,0.02700933,95737.0,95733.0,0.310893]
[1735259165781,0.18669319,95738.0,95733.0,0.310893]
[1735259165971,0.006,95736.0,95733.0,0.311893]
[1735259166784,0.006,95737.0,95733.0,0.311893]
[1735259166983,0.006,95737.0,95734.0,0.052292]
[1735259167280,0.015,95737.0,95734.0,0.052292]
[1735259167872,0.015,95737.0,95733.0,0.2606]
[1735259168079,0.015,95737.0,95735.0,0.052292]
[1735259168881,0.009,95737.0,95735.0,0.052292]
[1735259169178,0.006,95736.0,95735.0,0.052292]
[1735259169676,0.009,95737.0,95735.0,0.053292]
[1735259169878,0.016,95737.0,95735.0,0.053292]
[1735259170077,0.016,95737.0,95735.0,0.054292]
[1735259170574,0.016,95736.0,95735.0,0.054292]
[1735259171081,0.007,95736.0,95735.0,0.053292]
[1735259171283,0.007,95736.0,95735.0,0.054292]
[1735259171478,0.007,95736.0,95735.0,0.002]
[1735259171689,0.059291,95736.0,95735.0,0.002]
[1735259171983,0.052297,95725.0,95724.0,0.18676661]
[1735259172882,0.07667786,95734.0,95708.0,0.2444]
[1735259173083,0.07667786,95720.0,95708.0,0.296706]
[1735259173976,0.052302,95717.0,95708.0,0.2444]
[1735259174177,0.18754265,95719.0,95708.0,0.2444]
[1735259174378,0.052303,95716.0,95704.0,0.052309]
[1735259175181,0.18754265,95715.0,95704.0,0.052309]
[1735259175982,0.23984565,95715.0,95704.0,0.052309]
[1735259176171,0.18754265,95715.0,95704.0,0.052309]
[1735259176378,0.052305,95712.0,95704.0,0.052309]
[1735259177385,0.052306,95710.0,95704.0,0.052309]
[1735259177586,0.052305,95712.0,95704.0,0.052309]
[1735259177883,0.052312,95699.0,95694.0,0.45756661]
[1735259178087,0.07667786,95704.0,95694.0,0.18676661]
[1735259178275,0.052314,95695.0,95694.0,0.18676661]
[1735259178777,0.052314,95695.0,95687.0,0.052318]
[1735259178976,0.052314,95695.0,95684.0,0.25176]
[1735259178977,0.052314,95695.0,95694.0,0.003]
[1735259179177,0.052311,95700.0,95694.0,0.003]
[1735259179373,0.07667786,95704.0,95694.0,0.003]
[1735259179578,0.052312,95698.0,95694.0,0.003]
[1735259180079,0.052312,95698.0,95691.0,0.052316]
[1735259180284,0.052312,95698.0,95694.0,0.003]
[1735259181883,0.059312,95698.0,95694.0,0.001]
[1735259182082,0.063312,95698.0,95694.0,0.001]
[1735259182273,0.064312,95698.0,95694.0,0.001]
[1735259182478,0.09137025,95698.0,95694.0,0.001]
[1735259182778,0.09237025,95698.0,95694.0,0.002]
[1735259184889,0.04005825,95698.0,95694.0,0.002]
[1735259185295,0.04005825,95698.0,95697.0,0.052313]
[1735259186080,0.013,95698.0,95697.0,0.052313]
[1735259186289,0.02729869,95711.0,95710.0,0.052306]
[1735259186479,0.21473205,95717.0,95712.0,0.052304]
[1735259186679,0.21473205,95717.0,95699.0,0.2699]
[1735259186880,0.21473205,95717.0,95713.0,0.052304]
[1735259187189,0.21473205,95717.0,95699.0,0.2699]
[1735259187190,0.0271894,95717.0,95714.0,0.311103]
[1735259187388,0.052298,95724.0,95714.0,0.311103]
[1735259188288,0.18754265,95725.0,95720.0,0.0523]
[1735259188495,0.005,95717.0,95716.0,0.052302]
[1735259188889,0.02729282,95725.0,95714.0,0.311103]
[1735259189079,0.07667786,95730.0,95721.0,0.0523]
[1735259189284,0.052295,95729.0,95716.0,0.052302]
[1735259189592,0.008,95717.0,95716.0,0.001]
[1735259190193,0.008,95717.0,95716.0,0.053302]
[1735259191086,0.003,95717.0,95716.0,0.052302]
[1735259191685,0.004,95725.0,95719.0,0.0523]
[1735259191983,0.004,95725.0,95720.0,0.0523]
[1735259192190,0.004,95729.0,95720.0,0.0523]
[1735259192493,0.02685297,95729.0,95720.0,0.0523]
[1735259192685,0.07667786,95730.0,95720.0,0.0523]
[1735259193192,0.07667786,95730.0,95721.0,0.0523]
[1735259193384,1.03505465,95736.0,95714.0,0.2588]
[1735259193588,0.21427814,95736.0,95729.0,0.052295]
[1735259194393,0.005,95730.0,95729.0,0.052295]
[1735259195391,0.03173549,95736.0,95729.0,0.052295]
[1735259195598,0.03673549,95736.0,95729.0,0.053295]
[1735259195798,0.005,95730.0,95729.0,0.053295]
[1735259196984,0.005,95730.0,95729.0,0.052295]
[1735259197182,0.005,95730.0,95729.0,0.053295]
[1735259197584,0.03173549,95736.0,95721.0,0.2518]
[1735259197788,0.03173549,95736.0,95731.0,0.052294]
[1735259198295,0.052288,95743.0,95731.0,0.052294]
[1735259198695,0.052288,95743.0,95732.0,0.052294]
[1735259198999,0.011,95736.0,95732.0,0.052294]
[1735259200296,0.006,95736.0,95732.0,0.052294]
[1735259200591,0.07667786,95741.0,95732.0,0.053294]
[1735259200901,0.005,95736.0,95732.0,0.054294]
[1735259201398,0.011,95736.0,95732.0,0.054294]
[1735259201902,0.006,95736.0,95732.0,0.054294]
[1735259202092,0.006,95736.0,95735.0,0.052292]
[1735259203593,0.006,95736.0,95735.0,0.001]
[1735259203798,0.006,95736.0,95735.0,0.053292]
[1735259204101,0.011,95736.0,95735.0,0.053292]
[1735259204494,0.011,95736.0,95735.0,0.054292]
[1735259222820,0.00156744,95752.0,95751.0,0.052283]
[1735259224104,0.00256744,95752.0,95751.0,0.068283]
[1735259224304,0.18754265,95756.0,95751.0,0.068283]
[1735259224508,0.18754265,95756.0,95755.0,0.052281]
[1735259225314,0.15650267,95756.0,95755.0,0.052281]
[1735259225520,0.15750267,95756.0,95755.0,0.052281]
[1735259226318,0.15650267,95756.0,95755.0,0.052281]
[1735259226520,0.15650267,95756.0,95755.0,0.059281]
[1735259226711,0.02133251,95762.0,95761.0,0.052278]
[1735259226911,0.15650267,95765.0,95755.0,0.016]
[1735259227222,0.15650267,95765.0,95764.0,0.052276]
[1735259227917,0.15650267,95771.0,95770.0,0.052273]
[1735259229316,0.15650267,95772.0,95770.0,0.052273]
[1735259229515,0.15650267,95772.0,95770.0,0.058273]
[1735259230118,0.15650267,95772.0,95770.0,0.067273]
[1735259230525,0.15650267,95772.0,95770.0,0.066273]
[1735259231020,0.2644,95777.0,95776.0,0.05227]
[1735259232314,0.2644,95777.0,95776.0,0.05727]
[1735259232521,0.2644,95777.0,95776.0,0.06627]
[1735259233218,0.15650267,95789.0,95776.0,0.06627]
[1735259233415,0.2399,95788.0,95782.0,0.052266]
[1735259234221,0.02297139,95783.0,95782.0,0.052266]
[1735259234419,0.00156665,95783.0,95782.0,0.052266]
[1735259235522,0.00156665,95783.0,95782.0,0.061266]
[1735259236114,0.00156665,95783.0,95782.0,0.065266]
[1735259240627,0.00156665,95783.0,95782.0,0.013]
[1735259240820,0.35383265,95783.0,95761.0,0.1879625]
[1735259241027,0.07667786,95771.0,95761.0,0.1879625]
[1735259241322,0.05228,95757.0,95756.0,0.18024484]
[1735259241525,0.052283,95752.0,95745.0,0.37353322]
[1735259242621,0.052283,95752.0,95751.0,0.001]
[1735259243025,0.07355662,95752.0,95751.0,0.001]
[1735259244331,0.08055662,95752.0,95751.0,0.002]
[1735259244826,0.08955662,95752.0,95751.0,0.002]
[1735259246927,0.24605929,95752.0,95751.0,0.002]
[1735259249627,0.08955662,95752.0,95751.0,0.002]
[1735259249829,0.08455662,95752.0,95751.0,0.002]
[1735259251423,0.07755662,95752.0,95751.0,0.001]
[1735259251626,0.08155662,95752.0,95751.0,0.002]
[1735259251819,0.02927362,95752.0,95751.0,0.002]
[1735259252129,0.02527362,95752.0,95751.0,0.001]
[1735259252531,0.18509951,95752.0,95751.0,0.002]
[1735259252930,0.18109951,95752.0,95751.0,0.001]
[1735259253229,0.18509951,95752.0,95751.0,0.002]
[1735259253428,0.18109951,95752.0,95751.0,0.001]
[1735259253622,0.18509951,95752.0,95751.0,0.002]
[1735259253825,0.02927362,95752.0,95751.0,0.002]
[1735259257729,0.02927362,95752.0,95751.0,0.054283]
[1735259258228,0.02527362,95752.0,95751.0,0.054283]
[1735259258430,0.02927362,95752.0,95751.0,0.054283]
[1735259259232,0.15385285,95752.0,95751.0,0.054283]
[1735259259742,0.14985285,95752.0,95751.0,0.053283]
[1735259260038,0.15385285,95752.0,95751.0,0.053283]
[1735259260641,0.02927362,95752.0,95751.0,0.053283]
[1735259261838,0.02927362,95752.0,95751.0,0.001]
[1735259262244,0.08155662,95752.0,95751.0,0.001]
[1735259264540,0.02927362,95752.0,95733.0,0.2382]
[1735259264741,0.052296,95729.0,95721.0,0.4809]
[1735259264942,0.07667786,95736.0,95721.0,0.48146]
[1735259265243,0.052299,95723.0,95711.0,0.052305]
[1735259265438,0.07667786,95721.0,95711.0,0.052305]
[1735259267143,0.08067786,95721.0,95711.0,0.052305]
[1735259267335,0.12466408,95716.0,95707.0,0.73186]
[1735259267537,0.12466408,95716.0,95707.0,0.7313]
[1735259268639,0.12766408,95716.0,95711.0,0.001]
[1735259269142,0.12766408,95716.0,95707.0,0.784207]
[1735259269342,0.12866408,95716.0,95707.0,0.783607]
[1735259269542,0.13166408,95716.0,95707.0,0.783607]
[1735259269743,0.12466408,95714.0,95707.0,0.783607]
[1735259270043,0.12466408,95714.0,95711.0,0.001]
[1735259270841,0.12466408,95713.0,95711.0,0.001]
[1735259272042,0.12466408,95714.0,95710.0,0.052305]
[1735259272642,0.12466408,95714.0,95711.0,0.001]
[1735259272643,0.009,95713.0,95711.0,0.001]
[1735259273137,0.004,95713.0,95710.0,0.053305]
[1735259273533,0.004,95713.0,95710.0,0.052305]
[1735259273741,0.009,95713.0,95711.0,0.001]
[1735259274340,0.005,95713.0,95711.0,0.001]
[1735259274732,0.15582589,95723.0,95714.0,0.052303]
[1735259275041,0.20661769,95731.0,95722.0,0.052299]
[1735259275246,0.20661769,95731.0,95730.0,0.052295]
[1735259275634,0.18754265,95732.0,95721.0,0.07667786]
[1735259275838,0.18754265,95732.0,95731.0,0.052294]
[1735259277143,0.01921224,95740.0,95739.0,0.05229]
[1735259277348,0.00156724,95750.0,95731.0,0.052294]
[1735259277540,0.05385124,95750.0,95731.0,0.052294]
[1735259277933,0.07255393,95750.0,95732.0,0.5091]
[1735259278141,0.02026993,95750.0,95745.0,0.052286]
[1735259278337,0.02026993,95750.0,95746.0,0.052286]
[1735259278740,0.02126993,95750.0,95746.0,0.052286]
[1735259279135,0.02226993,95750.0,95746.0,0.052286]
[1735259279742,0.02126993,95750.0,95746.0,0.052286]
[1735259280649,0.02026993,95750.0,95746.0,0.057286]
[1735259281040,0.02026993,95750.0,95746.0,0.005]
[1735259281236,0.02026993,95750.0,95747.0,0.052285]
[1735259281447,0.02126993,95750.0,95747.0,0.052285]
[1735259282541,0.02126993,95750.0,95747.0,0.061285]
[1735259283347,0.02126993,95750.0,95749.0,0.052284]
[1735259284647,0.02026993,95750.0,95749.0,0.052284]
[1735259284847,0.02126993,95750.0,95749.0,0.066284]
[1735259285449,0.02126993,95750.0,95749.0,0.014]
[1735259286253,0.02126993,95750.0,95749.0,0.066284]
[1735259286443,0.12357671,95768.0,95749.0,0.066284]
[1735259286444,0.18754265,95755.0,95754.0,0.052282]
[1735259286643,0.052268,95779.0,95749.0,0.014]
[1735259286851,0.2605,95781.0,95760.0,0.07667786]
[1735259287048,0.2605,95781.0,95751.0,0.052283]
[1735259287049,0.052271,95775.0,95751.0,0.052283]
[1735259287254,0.052271,95775.0,95752.0,0.492]
[1735259287553,0.052271,95775.0,95765.0,0.052275]
[1735259288150,0.27777095,95781.0,95760.0,0.07667786]
[1735259288350,0.27777095,95781.0,95768.0,0.052274]
[1735259288961,0.001,95775.0,95768.0,0.052274]
[1735259289960,0.001,95775.0,95765.0,0.012]
[1735259290453,0.001,95775.0,95765.0,0.061276]
[1735259290645,0.001,95775.0,95760.0,0.07667786]
[1735259290646,0.27777095,95781.0,95768.0,0.005]
[1735259290963,0.27777095,95781.0,95772.0,0.052272]
[1735259292452,0.27777095,95781.0,95772.0,0.056272]
[1735259293649,0.27777095,95781.0,95772.0,0.058272]
[1735259293953,0.33003795,95781.0,95772.0,0.058272]
[1735259295362,0.01727095,95781.0,95773.0,0.052271]
[1735259295562,0.00156664,95782.0,95773.0,0.297271]
[1735259296458,0.00156664,95782.0,95774.0,0.052271]
[1735259296659,0.0192337,95782.0,95774.0,0.052271]
[1735259296859,0.052268,95780.0,95773.0,0.246]
[1735259297048,0.052271,95774.0,95773.0,0.001]
[1735259297255,0.00156664,95782.0,95772.0,0.004]
[1735259297554,0.548071,95773.0,95772.0,0.004]
[1735259297758,0.052272,95771.0,95761.0,0.052277]
[1735259298359,0.052272,95771.0,95760.0,0.07667786]
[1735259298360,0.00092,95773.0,95772.0,0.009]
[1735259298568,0.052267,95780.0,95772.0,0.009]
[1735259298862,0.052267,95780.0,95770.0,0.052272]
[1735259299058,0.00156664,95782.0,95765.0,0.052275]
[1735259299260,0.00156664,95782.0,95761.0,0.002]
[1735259299563,0.052274,95769.0,95761.0,0.002]
[1735259300449,0.052274,95769.0,95759.0,0.052279]
[1735259301159,0.052274,95769.0,95761.0,0.003]
[1735259301355,0.07667786,95780.0,95761.0,0.003]
[1735259301554,0.052273,95771.0,95757.0,0.05228]
[1735259301755,0.052273,95770.0,95759.0,0.003]
[1735259302664,0.052268,95779.0,95759.0,0.003]
[1735259302866,0.052269,95778.0,95759.0,0.003]
[1735259303164,0.05227,95776.0,95759.0,0.003]
[1735259303363,0.052274,95768.0,95759.0,0.003]
[1735259303759,0.052274,95768.0,95761.0,0.003]
[1735259304560,0.052274,95768.0,95759.0,0.001]
[1735259304967,0.052274,95768.0,95761.0,0.003]
[1735259307670,0.052275,95767.0,95761.0,0.003]
[1735259308966,0.052275,95767.0,95761.0,0.004]
[1735259309966,0.052275,95767.0,95761.0,0.002]
[1735259312774,0.01711878,95768.0,95761.0,0.002]
[1735259312975,0.18734118,95771.0,95761.0,0.002]
[1735259313372,0.23961418,95771.0,95761.0,0.002]
[1735259313970,0.18734118,95769.0,95761.0,0.002]
[1735259314261,0.18734118,95769.0,95761.0,0.003]
[1735259315176,0.18734118,95769.0,95761.0,0.004]
[1735259315483,0.18734118,95769.0,95761.0,0.003]
[1735259316874,0.052273,95771.0,95761.0,0.003]
[1735259319181,0.052274,95769.0,95761.0,0.003]
[1735259319880,0.18734118,95771.0,95761.0,0.054278]
[1735259320181,0.23961418,95771.0,95761.0,0.054278]
[1735259320390,0.23961418,95771.0,95761.0,0.003]
[1735259320781,0.18734118,95766.0,95761.0,0.003]
[1735259321083,0.18734118,95766.0,95761.0,0.002]
[1735259322077,0.18734118,95764.0,95761.0,0.002]
[1735259323388,0.18734118,95764.0,95761.0,0.001]
[1735259323871,0.18734118,95764.0,95761.0,0.002]
[1735259326784,0.052274,95768.0,95761.0,0.002]
[1735259326785,0.18734118,95763.0,95761.0,0.002]
[1735259327781,0.18734118,95763.0,95761.0,0.001]
[1735259327981,0.18734118,95762.0,95761.0,0.002]
[1735259328892,0.18734118,95763.0,95761.0,0.002]
[1735259329394,0.18734118,95763.0,95761.0,0.001]
[1735259329691,0.052274,95768.0,95761.0,0.002]
[1735259331082,0.052274,95768.0,95761.0,0.056278]
[1735259331286,0.2558,95770.0,95762.0,0.052277]
[1735259332296,0.18786737,95765.0,95762.0,0.052277]
[1735259332791,0.18786737,95765.0,95762.0,0.054277]
[1735259333385,0.18786737,95764.0,95762.0,0.054277]
[1735259333685,0.18786737,95764.0,95762.0,0.052277]
[1735259333886,0.18786737,95764.0,95762.0,0.053277]
[1735259334393,0.18786737,95764.0,95762.0,0.054277]
[1735259334994,0.2558,95770.0,95762.0,0.054277]
[1735259334995,0.18786737,95766.0,95762.0,0.054277]
[1735259336194,0.18786737,95765.0,95762.0,0.002]
[1735259336395,0.18786737,95765.0,95764.0,0.052276]
[1735259336888,0.18786737,95765.0,95764.0,1.552276]
[1735259337595,0.18786737,95765.0,95764.0,1.553276]
[1735259338285,0.18786737,95765.0,95764.0,1.554276]
[1735259338486,0.18786737,95766.0,95764.0,1.554276]
[1735259339496,0.18786737,95766.0,95764.0,1.552276]
[1735259339798,0.18786737,95766.0,95764.0,1.554276]